Cogmind - Beta 11.1 @@@ ROGUE MODE // 2022.05.01 @ 22:42:44 Player: Olga Result: Destroyed self with Rocket Launcher Performance ------------- Evolutions (2) 1000 Regions Visited (3) 600 Robots Destroyed (0) 0 Value Destroyed (10) 10 Prototype IDs (0) 0 Alien Tech Used (0) 0 Bonus (470) 470 TOTAL SCORE: 2080 Bonus ------- Pacifist 470 Cogmind --------- Core Integrity 0/550 Matter 173/300 Energy 100/100 System Corruption 10% Temperature Cool (0) Movement Core (100) Ox1 Location -8/Materials Parts ------- > --- POWER (1) -------- (None) > --- PROPULSION (2) --- (None) > --- UTILITY (6) ------ (None) > --- WEAPON (2) ------- Rocket Launcher > --- INVENTORY (5) ---- Light Ion Engine Cesium-ion Thruster Medium Laser Light Assault Rifle Mining Claw Peak State ------------ > --- POWER ------------ (None) > --- PROPULSION ------- Cesium-ion Thruster Cesium-ion Thruster > --- UTILITY ---------- Improved Targeting Computer System Shield > --- WEAPON ----------- (None) > --- INVENTORY -------- Light Ion Engine Medium Laser Light Assault Rifle Mining Claw [Rating: 11] Favorites ----------- Power None Propulsion Flight Unit Flight Unit Flight Unit Utility Improved Targeting Computer Device Seismic Detector Processor Improved Targeting Computer Hackware System Shield Protection Light Armor Plating Weapon Light Assault Rifle Energy Gun Medium Laser Ballistic Gun Light Assault Rifle Launcher Rocket Launcher Slashing Weapon Mining Claw Build | -11 -10 -9 -8 ------- Run | Scr Mat Mat Mat Slots Evolved 4 | . . 2 2 Power . | . . . . Propulsion . | . . . . Utility 4 | . . 2 2 Weapon . | . . . . Parts Attached 13 | 1 4 . 8 Power . | . . . . Engine . | . . . . Core . | . . . . Reactor . | . . . . Propulsion 4 | . 1 . 3 Treads . | . . . . Leg . | . . . . Wheel . | . . . . Hover . | . . . . Flight 4 | . 1 . 3 Utility 4 | . 1 . 3 Device 1 | . 1 . . Storage . | . . . . Processor 1 | . . . 1 Hackware 1 | . . . 1 Protection 1 | . . . 1 Artifact . | . . . . Weapon 5 | 1 2 . 2 Energy Gun 1 | 1 . . . Energy Cannon . | . . . . Ballistic Gun 1 | . 1 . . Ballistic Cannon . | . . . . Launcher 2 | . . . 2 Special Weapon . | . . . . Impact Weapon . | . . . . Slashing Weapon 1 | . 1 . . Piercing Weapon . | . . . . Special Melee Weapon . | . . . . Unidentified Prototypes . | . . . . Parts Lost 9 | . . 1 8 Power . | . . . . Propulsion 4 | . . . 4 Utility 4 | . . 1 3 Weapon 1 | . . . 1 Highest Loss Streak 8 | . . 1 8 To Critical Strikes . | . . . . Average Slot Usage (%) 36 | . 47 44 27 Flight 10 | . 12 11 9 Device 4 | . 8 11 . Processor 3 | . . . 6 Hackware 1 | . . . 3 Protection 1 | . . . 3 Energy Gun 3 | . 8 . . Ballistic Gun 6 | . 12 11 . Launcher 1 | . . . 3 Slashing Weapon 3 | . 5 11 . Naked Turns . | . . . . Heaviest Build 4 | 2 4 4 4 Greatest Support 10 | 3 4 4 10 Greatest Overweight (x) 1 | . . . 1 Average Overweight (x) . | . . . . Largest Inventory Capacity 5 | 5 5 5 5 Average Capacity 5 | 5 5 5 5 Most Carried 5 | 4 5 5 5 Average Carried 4 | 4 4 5 4 Final Capacity 5 | 5 5 5 5 Final Carried 5 | 4 5 5 5 Class Distribution -------------------- 100% | Mutant Dominant Class ---------------- Mutant | -10/Materials Mutant | -9/Materials Mutant | -8/Materials Resources | -11 -10 -9 -8 ----------- Run | Scr Mat Mat Mat Matter Collected 289 | 205 . . 84 Remotely . | . . . . Salvage Created . | . . . . Parts . | . . . . Haulers Intercepted . | . . . . Recyclers Shooed . | . . . . Parts Field Recycled . | . . . . Retrieved Matter . | . . . . Parts Self-Destructed . | . . . . Prevented . | . . . . Kills | -11 -10 -9 -8 ------- Run | Scr Mat Mat Mat Combat Hostiles Destroyed . | . . . . Classes Destroyed . | . . . . Best Kill Streak . | . . . . Combat Bots Only . | . . . . Max Kills in Single Turn . | . . . . Gunslinging . | . . . . Exploded . | . . . . Melee . | . . . . Uniques/NPCs Destroyed . | . . . . Combat | -11 -10 -9 -8 -------- Run | Scr Mat Mat Mat Damage Taken 1011 | . . 76 935 Core 626 | . . 46 580 Absorbed by Shields . | . . . . Core Remaining (%) 96 | 100 100 88 . Volleys Fired 12 | . . . 12 Largest 1 | . . . 1 Hottest 33 | . . . 33 Shots Fired 12 | . . . 12 Gun . | . . . . Cannon . | . . . . Launcher 12 | . . . 12 Special . | . . . . Kinetic . | . . . . Thermal . | . . . . Explosive 12 | . . . 12 Electromagnetic . | . . . . Robot Hit Streak 1 | . . . 1 Robot Miss Streak . | . . . . Penetration Max . | . . . . Secondary Targets . | . . . . Shots Hit Robots 1 | . . . 1 Core Hits 4 | . . . 4 Critical Kills . | . . . . Critical Parts Destroyed . | . . . . Critical Strikes . | . . . . Melee Attacks 8 | . 7 1 . Impact . | . . . . Slashing 8 | . 7 1 . Piercing . | . . . . Sneak Attacks . | . . . . Combat Hostiles . | . . . . Follow-up Attacks . | . . . . Damage Inflicted 201 | . . . 201 Guns . | . . . . Cannons . | . . . . Explosions 184 | . . . 184 Melee . | . . . . Ramming 17 | . . . 17 Kinetic . | . . . . Thermal . | . . . . Explosive 184 | . . . 184 Electromagnetic . | . . . . Impact . | . . . . Slashing . | . . . . Piercing . | . . . . Highest Corruption 10 | . . . 10 Average Corruption 2 | . . . 2 Corruption Purged . | . . . . Corruption Blocked . | . . . . Effects 1 | . . . 1 Message Errors 1 | . . . 1 Overload Shots . | . . . . Overflow Damage . | . . . . Projectiles . | . . . . Explosions . | . . . . Melee . | . . . . Knockbacks . | . . . . Impact . | . . . . Kinetic . | . . . . Secondary . | . . . . Self-Inflicted Damage 76 | . . . 76 Shots 2 | . . . 2 Rammed 4 | . . . 4 Targets Rammed 4 | . . . 4 Kicked . | . . . . Crushed . | . . . . Highest Temperature 13 | . . . 13 Average Temperature 8 | . . . 8 Received Heat Transfer 261 | . . 36 225 Siege Activations . | . . . . Robots Corrupted . | . . . . Combat Hostiles . | . . . . Parts Fried . | . . . . Impact Corruptions . | . . . . Robots Melted . | . . . . Combat Hostiles . | . . . . Parts Melted . | . . . . Heat Transferred . | . . . . Parts Sabotaged . | . . . . Parts Stolen . | . . . . Parts Stripped . | . . . . Power Chain Reactions . | . . . . Missiles Intercepted . | . . . . Alert | -11 -10 -9 -8 ------- Run | Scr Mat Mat Mat Peak Influence 85 | . 42 60 85 Initial 20 | . . 17 20 Average 40 | . 27 36 50 Maximum Alert Level . | . . . . Low Security (%) 100 | 100 100 100 100 Level 1 . | . . . . Level 2 . | . . . . Level 3 . | . . . . Level 4 . | . . . . Level 5 . | . . . . High Security . | . . . . Max Security . | . . . . Squads Dispatched 4 | . . 2 2 Investigation 2 | . . 2 . Extermination . | . . . . Reinforcement 2 | . . . 2 Assault . | . . . . Garrison . | . . . . Intercept . | . . . . Searches Triggered . | . . . . Construction Impeded . | . . . . Haulers Reinforced . | . . . . Active Scanning Responses . | . . . . Cargo Convoy Interrupts . | . . . . Stealth | -11 -10 -9 -8 --------- Run | Scr Mat Mat Mat Distress Signals 2 | . 1 . 1 Communications Jammed . | . . . . Distress Signals . | . . . . Times Spotted 22 | . 1 7 14 Peak Tracking Total 11 | . 1 7 11 Tactical Retreats 1 | . . . 1 Traps | -11 -10 -9 -8 ------- Run | Scr Mat Mat Mat Traps Triggered . | . . . . Indirectly . | . . . . Trap Hack Attempts . | . . . . Triggered . | . . . . Disarmed . | . . . . Reprogrammed . | . . . . Reused . | . . . . Traps Extracted . | . . . . Installed . | . . . . Triggered . | . . . . Machines | -11 -10 -9 -8 ---------- Run | Scr Mat Mat Mat Machines Disabled 1 | . . . 1 Max in Single Turn 1 | . . . 1 Machines Sabotaged . | . . . . Garrisons Compromised . | . . . . Overloaded Fab Kills . | . . . . Hacking | -11 -10 -9 -8 --------- Run | Scr Mat Mat Mat Machines Accessed 8 | . 4 3 1 Terminals 8 | . 4 3 1 Fabricators . | . . . . Repair Stations . | . . . . Recycling Units . | . . . . Scanalyzers . | . . . . Garrison Access . | . . . . Total Hacks 29 | . 11 13 5 Successful 9 | . 4 4 1 Failed 20 | . 7 9 4 Catastrophic 5 | . 2 3 . Database Lockouts . | . . . . Manual 29 | . 11 13 5 Terminals 29 | . 11 13 5 Fabricators . | . . . . Repair Stations . | . . . . Recycling Units . | . . . . Scanalyzers . | . . . . Garrison Access . | . . . . Terminal Hacks 3 | . 1 1 1 Level Access Points 1 | . . . 1 Terminal Index 2 | . 1 1 . Fabricator Hacks . | . . . . Repair Station Hacks . | . . . . Recycling Unit Hacks . | . . . . Scanalyzer . | . . . . Garrison Access Hacks . | . . . . Unauthorized Hacks 6 | . 3 3 . Terminals 6 | . 3 3 . Botnet 6 | . 3 3 . Fabricators . | . . . . Repair Stations . | . . . . Recycling Units . | . . . . Scanalyzers . | . . . . Garrison Access . | . . . . Data Cores Recovered . | . . . . Used . | . . . . Hacking Detections 8 | . 4 3 1 Full Trace Events 3 | . . 3 . Feedback Events . | . . . . Feedback Blocked . | . . . . Robot Schematics Acquired . | . . . . Robots Built . | . . . . Authchips . | . . . . Time . | . . . . Total Robot Build Rating . | . . . . Part Schematics Acquired . | . . . . Parts Built . | . . . . Authchips . | . . . . Time . | . . . . Total Part Build Rating . | . . . . Parts Repaired . | . . . . Time . | . . . . Parts Recycled . | . . . . Recycled Matter . | . . . . Retrieved Matter . | . . . . Retrieved Components . | . . . . Parts Scanalyzed . | . . . . Part Schematics Acquired . | . . . . Parts Damaged . | . . . . Bothacking | -11 -10 -9 -8 ------------ Run | Scr Mat Mat Mat Used RIF Installer . | . . . . Robots Hacked . | . . . . Non-combat . | . . . . Combat . | . . . . Robot Hacks Applied . | . . . . Relay Couplers Released . | . . . . Fabnet Peak Effective % . | . . . . Robots Rewired . | . . . . Allies Hacked . | . . . . Hacks Repelled . | . . . . Allies | -11 -10 -9 -8 -------- Run | Scr Mat Mat Mat Total Allies . | . . . . Largest Group . | . . . . Highest-Rated Group . | . . . . Highest-Rated Ally . | . . . . Total Orders . | . . . . Ally Attacks . | . . . . Total Damage . | . . . . Kills . | . . . . Allies Corrupted . | . . . . Allies Melted . | . . . . Intel | -11 -10 -9 -8 ------- Run | Scr Mat Mat Mat Robot Analysis Total . | . . . . Derelict Logs Recovered . | . . . . Drone Launches . | . . . . Drone Recoveries . | . . . . Exploration | -11 -10 -9 -8 ------------- Run | Scr Mat Mat Mat Turns Passed 229 | 1 84 33 111 Spaces Moved 382 | 1 132 75 174 Core 40 | 1 14 . 25 Treads . | . . . . Legs . | . . . . Wheels . | . . . . Hover . | . . . . Flight 342 | . 118 75 149 Fastest Speed 32 | 50 40 40 32 Average Speed 40 | 50 41 40 39 Slowest Speed 100 | 50 50 40 100 Overloaded Moves . | . . . . Propulsion Burnouts . | . . . . Robots Hopped 9 | . 1 4 4 Cave-ins Triggered 1 | . . . 1 Exploration Rate (%) 18 | 2 33 12 25 Regions Visited 3 Branch Regions . Pre-discovered Areas . | . . . . Known Exits Taken . | . . . . Unknown Exits Taken 3 | 1 1 1 . Scrap Searched . | . . . . Spaces Dug 60 | . 6 1 53 Terrain Destroyed 179 | . 6 1 172 Melee 7 | . 6 1 . Projectile . | . . . . AOE 172 | . . . 172 Terrain Rammed . | . . . . Walls Destroyed . | . . . . Machines Disabled . | . . . . Actions | -11 -10 -9 -8 --------- Run | Scr Mat Mat Mat Total 416 | 1 144 71 200 Wait . | . . . . Move 362 | . 129 68 165 Hop 7 | . 1 2 4 Pick Up 4 | . 2 . 2 Fast Attach 9 | . 3 . 6 Attach 3 | 1 . . 2 Detach 2 | . . . 2 Swap 1 | . 1 . . Drop 3 | . 1 . 2 Fire 12 | . . . 12 Melee 8 | . 7 1 . Ram 4 | . . . 4 Kick . | . . . . Crush . | . . . . Escape Stasis 1 | . . . 1 Rewire . | . . . . Trap . | . . . . Miscellaneous . | . . . . Route ------- -11/Scrapyard -10/Materials -9/Materials -8/Materials (discovered 3 exits: Fac x3) History --------- Turn | Location | Event 1 | -11/Scrapyard | Released all parts (6) 2 | -11/Scrapyard | Discovered new exit (range 0) 2 | -11/Scrapyard | Entered Materials 79 | -10/Materials | Discovered new exit (range 4) 86 | -10/Materials | Entered another Materials area 86 | -9/Materials | Evolved 2 slots: Utility x2 117 | -9/Materials | Discovered new exit (range 7) 119 | -9/Materials | Entered another Materials area 119 | -8/Materials | Evolved 2 slots: Utility x2 174 | -8/Materials | Identified exit to Factory 179 | -8/Materials | Core integrity fell below 50% 221 | -8/Materials | Core integrity fell below 20% 227 | -8/Materials | Crushed by falling debris 228 | -8/Materials | System corruption reached 10% 230 | -8/Materials | Destroyed self with Rocket Launcher Last Messages --------------- 00217_ Cesium-ion Thruster destroyed. 00218_ The unstable cave ceiling collapses. 00218_ U-05 Engineer lays Concrete. 00219_ The unstable cave ceiling collapses. 00219_ U-05 Engineer lays Concrete. 00220_ The unstable cave ceiling collapses. 00220_ U-05 Engineer lays Concrete. 00220_ Critical hit (Burn: +37). 00221_ U-05 Engineer lays Concrete. 00223_ U-05 Engineer builds a Wall. 00225_ Critical hit (Burn: +37). 00227_ The unstable cave ceiling collapses. 00227_ Crushed by falling debris. 00227_ Cesium-ion Thruster destroyed. 00227_ System corrupted by crushing effect (+5). 00227_ Imp. Targeting Computer destroyed. 00227_ System corrupted by crushing effect (+3). 00227_ U-05 Engineer lays Concrete. 00228_ The unstable cave ceiling collapses. 00228_ U-05 Engineer lays Concrete. Map ----- +----------------------------------------------------+ | ???????????????????????????# !! # #??????? | | ???????????????????????????# !! ## #??????? | | ???????????????????????????# ## #??????? | | ???????????????????????????# " " ## #??????? | | ???????????????????????????# "T" ## ######## | | ???????????????????????????# """ ## #] # | | ???????????????????????????############ # """ # | | ??????????????????????????????????????# # """ # | | ??????????????????????????????????????# / """ # | | ??????????????????????????????????????# # # | | ??????????????????????????????????????# # ! # | | ??????????????????????????????????????# #####/## | | ??????????????????????????????????????# | | ?????????????????????????????????????## | | ?????????????????????????????????##### | | ????????????????????????????????## # #/####### | | ????????????????????????????????# g H #?? | | ???????????????????????????????## #?? | | ?????????????????????????????### #?? | | ???????????????????????????### #?? | | ????????????????????????#### # """ #?? | | ???????????????????????## # # ## """ #?? | | ?????????????????????### # """ #?? | | ???????????????????### # #?? | | ???????????????????# # # ###?? | | ????????????????????# @ ## ##???? | | ???????????????????# ### ##????? | | ??????